[Event "*** Titled Tuesday Blitz"]
[Site "Chess.com"]
[Date "2019.06.04"]
[Round "4"]
[White "SalgadoChess91"]
[Black "LuckIsMySkill"]
[Result "1-0"]
[WhiteElo "2886"]
[BlackElo "2662"]
[TimeControl "180+2"]
[EndTime "13:53:08 PDT"]
[Termination "SalgadoChess91 won by resignation"]

1. d4 {[%clk 0:03:01.9]} 1... b5 {[%clk 0:02:59.6]} 2. e4 {[%clk 0:03:01.2]}
2... a6 {[%clk 0:02:59.9]} 3. Bd3 {[%clk 0:03:00.8]} 3... Bb7 {[%clk 0:03:01.1]}
4. Qe2 {[%clk 0:03:01.7]} 4... e6 {[%clk 0:03:02]} 5. Nf3 {[%clk 0:03:02.3]}
5... c5 {[%clk 0:03:02.7]} 6. dxc5 {[%clk 0:03:03.2]} 6... Bxc5 {[%clk
0:03:03.3]} 7. a4 {[%clk 0:03:04.3]} 7... b4 {[%clk 0:02:44.3]} 8. Nbd2 {[%clk
0:03:03.9]} 8... d6 {[%clk 0:02:44.9]} 9. Nb3 {[%clk 0:02:54.5]} 9... Nd7 {[%clk
0:02:42.7]} 10. Bf4 {[%clk 0:02:50.7]} 10... Ngf6 {[%clk 0:02:28.8]} 11. Rd1
{[%clk 0:02:47.9]} 11... e5 {[%clk 0:02:25.3]} 12. Bg5 {[%clk 0:02:40]} 12... h6
{[%clk 0:02:22.6]} 13. Bh4 {[%clk 0:02:37.5]} 13... Ba7 {[%clk 0:01:24.6]} 14.
Nfd2 {[%clk 0:02:18.2]} 14... Qc7 {[%clk 0:01:08.1]} 15. O-O {[%clk 0:02:17]}
15... g5 {[%clk 0:01:06.2]} 16. Bg3 {[%clk 0:02:17.2]} 16... Nc5 {[%clk
0:01:07.4]} 17. Nxc5 {[%clk 0:02:14.1]} 17... Bxc5 {[%clk 0:01:07]} 18. Kh1
{[%clk 0:02:06.5]} 18... a5 {[%clk 0:01:01]} 19. Bb5+ {[%clk 0:01:58.7]} 19...
Kf8 {[%clk 0:01:01.7]} 20. f3 {[%clk 0:01:57.8]} 20... Kg7 {[%clk 0:01:01.9]}
21. Nc4 {[%clk 0:01:55.4]} 21... Nh5 {[%clk 0:01:01]} 22. Bf2 {[%clk 0:01:51.3]}
22... Rhd8 {[%clk 0:00:59.4]} 23. Bxc5 {[%clk 0:01:35.7]} 23... Qxc5 {[%clk
0:00:54]} 24. Ne3 {[%clk 0:01:36.2]} 24... Nf4 {[%clk 0:00:52.8]} 25. Qf2 {[%clk
0:01:33.1]} 25... Bc8 {[%clk 0:00:47]} 26. Bc4 {[%clk 0:01:30.5]} 26... Be6
{[%clk 0:00:45.9]} 27. b3 {[%clk 0:01:31.5]} 27... Rac8 {[%clk 0:00:46.2]} 28.
g3 {[%clk 0:01:29.2]} 28... Ng6 {[%clk 0:00:44.2]} 29. Rd2 {[%clk 0:01:23.5]}
29... Bxc4 {[%clk 0:00:39.7]} 30. Nxc4 {[%clk 0:01:23.6]} 30... d5 {[%clk
0:00:19.7]} 31. exd5 {[%clk 0:01:13]} 31... Rxd5 {[%clk 0:00:20.8]} 32. Qxc5
{[%clk 0:01:13.8]} 32... Rcxc5 {[%clk 0:00:18.6]} 33. Rfd1 {[%clk 0:01:14.2]}
33... Rxd2 {[%clk 0:00:19.5]} 34. Rxd2 {[%clk 0:01:14.7]} 34... Nf8 {[%clk
0:00:21.1]} 35. Rd6 {[%clk 0:01:09.2]} 35... Ne6 {[%clk 0:00:21.4]} 36. Ra6
{[%clk 0:01:10.2]} 36... Nd4 {[%clk 0:00:22.5]} 37. Rxa5 {[%clk 0:01:11.1]}
37... Rc7 {[%clk 0:00:19]} 38. Rxe5 {[%clk 0:01:06.3]} 38... Nxc2 {[%clk
0:00:20.2]} 39. Rd5 {[%clk 0:01:03.8]} 39... Na1 {[%clk 0:00:21.3]} 40. Rb5
{[%clk 0:00:52.9]} 40... Nxb3 {[%clk 0:00:19.9]} 41. Rxb4 {[%clk 0:00:53.9]}
41... Nd4 {[%clk 0:00:21.6]} 42. Nd2 {[%clk 0:00:49.1]} 42... Rc1+ {[%clk
0:00:15.6]} 43. Kg2 {[%clk 0:00:48.5]} 43... Nf5 {[%clk 0:00:17.2]} 44. Kf2
{[%clk 0:00:43.8]} 44... Rc2 {[%clk 0:00:16.6]} 45. Ke2 {[%clk 0:00:43.3]} 45...
Ra2 {[%clk 0:00:18.1]} 46. Kd3 {[%clk 0:00:41.6]} 46... h5 {[%clk 0:00:18.9]}
47. Rb5 {[%clk 0:00:38.5]} 47... Ra3+ {[%clk 0:00:14.5]} 48. Nb3 {[%clk
0:00:33.9]} 48... Nd6 {[%clk 0:00:13.8]} 49. Rb6 {[%clk 0:00:30]} 49... Nf5
{[%clk 0:00:13.6]} 50. a5 {[%clk 0:00:29]} 50... g4 {[%clk 0:00:15.1]} 51. fxg4
{[%clk 0:00:29.3]} 51... hxg4 {[%clk 0:00:16.6]} 52. a6 {[%clk 0:00:28.2]} 52...
Ra2 {[%clk 0:00:14.8]} 53. Rb5 {[%clk 0:00:23]} 53... Nd6 {[%clk 0:00:12.8]} 54.
Ra5 {[%clk 0:00:24.1]} 54... Rb2 {[%clk 0:00:14.1]} 55. Kc3 {[%clk 0:00:23.7]}
55... Rxh2 {[%clk 0:00:09.9]} 56. a7 {[%clk 0:00:23.9]} 1-0

[Event "*** Titled Tuesday Blitz"]
[Site "Chess.com"]
[Date "2019.06.04"]
[Round "4"]
[White "GMsKoRPioN"]
[Black "Mikhail_Golubev"]
[Result "1-0"]
[WhiteElo "2555"]
[BlackElo "2475"]
[TimeControl "180+2"]
[EndTime "13:53:28 PDT"]
[Termination "GMsKoRPioN won on time"]

1. d4 {[%clk 0:03:00.1]} 1... Nf6 {[%clk 0:02:59.5]} 2. c4 {[%clk 0:03:01.4]}
2... g6 {[%clk 0:02:59.8]} 3. Nc3 {[%clk 0:03:02.6]} 3... Bg7 {[%clk 0:02:59.7]}
4. e4 {[%clk 0:03:04]} 4... d6 {[%clk 0:03:00]} 5. f3 {[%clk 0:03:05.3]} 5...
O-O {[%clk 0:02:59.2]} 6. Be3 {[%clk 0:03:06.7]} 6... a6 {[%clk 0:02:59.1]} 7.
Qd2 {[%clk 0:03:06.4]} 7... Nbd7 {[%clk 0:02:56.7]} 8. Nge2 {[%clk 0:03:04.3]}
8... b5 {[%clk 0:02:54.8]} 9. cxb5 {[%clk 0:03:03.5]} 9... axb5 {[%clk
0:02:55.3]} 10. Nxb5 {[%clk 0:03:05]} 10... c6 {[%clk 0:02:55.5]} 11. Nbc3
{[%clk 0:03:05.6]} 11... e5 {[%clk 0:02:54.3]} 12. d5 {[%clk 0:02:55.5]} 12...
cxd5 {[%clk 0:02:41.1]} 13. Nxd5 {[%clk 0:02:56.5]} 13... Nxd5 {[%clk
0:02:22.9]} 14. Qxd5 {[%clk 0:02:58.4]} 14... Rb8 {[%clk 0:02:16.4]} 15. b3
{[%clk 0:02:50.9]} 15... Nf6 {[%clk 0:01:56.2]} 16. Qd2 {[%clk 0:02:42.1]} 16...
d5 {[%clk 0:01:54.1]} 17. Ng3 {[%clk 0:02:42.5]} 17... Bb7 {[%clk 0:01:19.7]}
18. Bd3 {[%clk 0:02:36.2]} 18... dxe4 {[%clk 0:01:11]} 19. Bxe4 {[%clk
0:02:35.3]} 19... Nxe4 {[%clk 0:01:04.1]} 20. Qxd8 {[%clk 0:02:29]} 20... Rbxd8
{[%clk 0:00:59.5]} 21. fxe4 {[%clk 0:02:29.3]} 21... f5 {[%clk 0:00:56.3]} 22.
Bc5 {[%clk 0:02:23.2]} 22... Rf7 {[%clk 0:00:52.8]} 23. O-O {[%clk 0:02:19.3]}
23... f4 {[%clk 0:00:52.1]} 24. Nh1 {[%clk 0:02:16.5]} 24... Bxe4 {[%clk
0:00:51.3]} 25. Rad1 {[%clk 0:02:11.4]} 25... Rc8 {[%clk 0:00:47.7]} 26. b4
{[%clk 0:02:10]} 26... Bc6 {[%clk 0:00:45.4]} 27. Rfe1 {[%clk 0:02:00.6]} 27...
e4 {[%clk 0:00:43.5]} 28. Nf2 {[%clk 0:01:56.9]} 28... e3 {[%clk 0:00:43]} 29.
Ng4 {[%clk 0:01:58.2]} 29... h5 {[%clk 0:00:36.9]} 30. Nxe3 {[%clk 0:01:59.3]}
30... fxe3 {[%clk 0:00:37.2]} 31. Rxe3 {[%clk 0:02:01.2]} 31... Ra8 {[%clk
0:00:32.9]} 32. a3 {[%clk 0:01:55.5]} 32... Bb5 {[%clk 0:00:26.6]} 33. h4 {[%clk
0:01:51.8]} 33... Bf8 {[%clk 0:00:24.7]} 34. Rd5 {[%clk 0:01:42.8]} 34... Bc6
{[%clk 0:00:21]} 35. Rg5 {[%clk 0:01:41.7]} 35... Kh7 {[%clk 0:00:19.4]} 36. Re6
{[%clk 0:01:38.8]} 36... Bxc5+ {[%clk 0:00:16.6]} 37. bxc5 {[%clk 0:01:40.1]}
37... Be8 {[%clk 0:00:11.6]} 38. Rgxg6 {[%clk 0:01:33.9]} 38... Rf1+ {[%clk
0:00:10.2]} 39. Kxf1 {[%clk 0:01:33.5]} 39... Bxg6 {[%clk 0:00:10.6]} 40. Re3
{[%clk 0:01:31.8]} 40... Be8 {[%clk 0:00:09.5]} 41. Kf2 {[%clk 0:01:28.4]} 41...
Bc6 {[%clk 0:00:09.9]} 42. Re6 {[%clk 0:01:27.7]} 42... Rf8+ {[%clk 0:00:08.5]}
43. Kg1 {[%clk 0:01:23.6]} 43... Ba8 {[%clk 0:00:08.7]} 44. c6 {[%clk
0:01:22.7]} 44... Rc8 {[%clk 0:00:08.5]} 45. Re7+ {[%clk 0:01:22.4]} 45... Kg6
{[%clk 0:00:08.9]} 46. c7 {[%clk 0:01:23.7]} 46... Kf6 {[%clk 0:00:09.2]} 47.
Rh7 {[%clk 0:01:23.4]} 47... Ke6 {[%clk 0:00:08.4]} 48. Rxh5 {[%clk 0:01:17.5]}
48... Rxc7 {[%clk 0:00:07.9]} 49. Ra5 {[%clk 0:01:14.4]} 49... Bd5 {[%clk
0:00:06.2]} 50. g4 {[%clk 0:01:12.3]} 50... Rc4 {[%clk 0:00:05.5]} 51. Ra6+
{[%clk 0:01:11.4]} 51... Ke5 {[%clk 0:00:04.9]} 52. Rg6 {[%clk 0:01:10.2]} 52...
Rc1+ {[%clk 0:00:03.9]} 53. Kf2 {[%clk 0:01:11]} 53... Kf4 {[%clk 0:00:03.9]}
54. Ke2 {[%clk 0:01:02.1]} 54... Be4 {[%clk 0:00:03.7]} 55. Rf6+ {[%clk
0:00:58.3]} 55... Kxg4 {[%clk 0:00:04]} 56. Ke3 {[%clk 0:00:57.9]} 56... Bh7
{[%clk 0:00:03.8]} 57. Rh6 {[%clk 0:00:56.4]} 57... Bf5 {[%clk 0:00:02.8]} 58.
a4 {[%clk 0:00:54.9]} 58... Rc3+ {[%clk 0:00:03.1]} 59. Kd4 {[%clk 0:00:56.2]}
59... Ra3 {[%clk 0:00:03.8]} 60. Ra6 {[%clk 0:00:57.3]} 60... Kxh4 {[%clk
0:00:03.7]} 61. a5 {[%clk 0:00:58.3]} 61... Bg4 {[%clk 0:00:03.3]} 62. Ra7
{[%clk 0:00:57.2]} 62... Kg3 {[%clk 0:00:03.6]} 63. Kc4 {[%clk 0:00:57.7]} 63...
Bf3 {[%clk 0:00:03.5]} 64. Kb4 {[%clk 0:00:57.4]} 1-0

[Event "*** Titled Tuesday Blitz"]
[Site "Chess.com"]
[Date "2019.06.04"]
[Round "4"]
[White "gena217"]
[Black "Tacticalon"]
[Result "0-1"]
[WhiteElo "2902"]
[BlackElo "2710"]
[TimeControl "180+2"]
[EndTime "13:53:34 PDT"]
[Termination "Tacticalon won by resignation"]

1. e4 {[%clk 0:03:01.9]} 1... c6 {[%clk 0:03:01]} 2. d4 {[%clk 0:02:55.3]} 2...
d5 {[%clk 0:03:01.7]} 3. e5 {[%clk 0:02:56.9]} 3... Bf5 {[%clk 0:03:01.6]} 4. h4
{[%clk 0:02:58.2]} 4... h6 {[%clk 0:03:00.8]} 5. g4 {[%clk 0:02:59]} 5... Bd7
{[%clk 0:03:01.6]} 6. Nc3 {[%clk 0:02:58.4]} 6... Qc8 {[%clk 0:03:02.8]} 7. Be2
{[%clk 0:02:38.8]} 7... e6 {[%clk 0:02:56.2]} 8. Be3 {[%clk 0:02:38.6]} 8... c5
{[%clk 0:02:56.4]} 9. Nf3 {[%clk 0:02:39]} 9... cxd4 {[%clk 0:02:55.9]} 10. Nxd4
{[%clk 0:02:39.6]} 10... Nc6 {[%clk 0:02:57.3]} 11. f4 {[%clk 0:02:39.8]} 11...
Nxd4 {[%clk 0:02:53.9]} 12. Qxd4 {[%clk 0:02:40.2]} 12... h5 {[%clk 0:02:54.5]}
13. f5 {[%clk 0:02:35.4]} 13... Ne7 {[%clk 0:02:51.6]} 14. fxe6 {[%clk
0:02:20.9]} 14... fxe6 {[%clk 0:02:51.2]} 15. O-O-O {[%clk 0:02:20.7]} 15... Nc6
{[%clk 0:02:48.8]} 16. Qf4 {[%clk 0:02:06]} 16... Qc7 {[%clk 0:02:46.1]} 17. Nb5
{[%clk 0:02:04.2]} 17... Qa5 {[%clk 0:02:44.6]} 18. Kb1 {[%clk 0:01:50.3]} 18...
O-O-O {[%clk 0:02:43.1]} 19. c4 {[%clk 0:01:50.2]} 19... Be7 {[%clk 0:01:47.8]}
20. cxd5 {[%clk 0:01:44.7]} 20... exd5 {[%clk 0:01:49.7]} 21. Rxd5 {[%clk
0:01:45.6]} 21... Rhf8 {[%clk 0:01:33.9]} 22. Qg3 {[%clk 0:01:37.1]} 22... Bf5+
{[%clk 0:01:29]} 23. gxf5 {[%clk 0:01:31.7]} 23... Rxd5 {[%clk 0:01:29.8]} 24.
Nd6+ {[%clk 0:01:21.2]} 24... Bxd6 {[%clk 0:01:17.9]} 25. exd6 {[%clk
0:01:23.1]} 25... Rdxf5 {[%clk 0:00:46.1]} 26. Qxg7 {[%clk 0:01:22.4]} 26...
R5f7 {[%clk 0:00:45.7]} 27. Qg5 {[%clk 0:01:20.9]} 27... Rf5 {[%clk 0:00:27.4]}
28. Qg7 {[%clk 0:01:09.6]} 28... R5f7 {[%clk 0:00:18.4]} 29. Qg3 {[%clk
0:01:04.2]} 29... Qf5+ {[%clk 0:00:17.9]} 30. Ka1 {[%clk 0:01:04.7]} 30... Qc2
{[%clk 0:00:09.3]} 31. Re1 {[%clk 0:00:49.8]} 31... Rf5 {[%clk 0:00:06.1]} 32.
Bd1 {[%clk 0:00:46.5]} 32... Qd3 {[%clk 0:00:03.7]} 33. Be2 {[%clk 0:00:35.2]}
33... Qd5 {[%clk 0:00:04.8]} 34. a3 {[%clk 0:00:32.4]} 34... Qe5 {[%clk
0:00:04.5]} 35. Qg1 {[%clk 0:00:29.3]} 35... Qxd6 {[%clk 0:00:04.2]} 36. Rc1
{[%clk 0:00:30.1]} 36... Qe5 {[%clk 0:00:04.5]} 37. Bc5 {[%clk 0:00:23.2]} 37...
Qxe2 {[%clk 0:00:04]} 38. Bxf8 {[%clk 0:00:23.5]} 38... Rxf8 {[%clk 0:00:05.9]}
39. Qg7 {[%clk 0:00:23.3]} 39... Qe8 {[%clk 0:00:05.9]} 40. Qh7 {[%clk 0:00:23]}
40... Rf2 {[%clk 0:00:05.2]} 41. Qg7 {[%clk 0:00:22.9]} 41... Re2 {[%clk
0:00:04.9]} 42. Qg3 {[%clk 0:00:21.5]} 42... Qe5 {[%clk 0:00:05.9]} 43. Qb3
{[%clk 0:00:21.9]} 43... Kc7 {[%clk 0:00:06.6]} 44. Qf7+ {[%clk 0:00:22.8]}
44... Kb6 {[%clk 0:00:08]} 45. Qb3+ {[%clk 0:00:24.3]} 45... Qb5 {[%clk
0:00:09.4]} 46. Qc3 {[%clk 0:00:24.7]} 46... Na5 {[%clk 0:00:10.8]} 47. Qd4+
{[%clk 0:00:15.1]} 47... Ka6 {[%clk 0:00:11.8]} 48. Qd6+ {[%clk 0:00:16.3]}
48... Qb6 {[%clk 0:00:11.8]} 49. Qxb6+ {[%clk 0:00:15.8]} 49... Kxb6 {[%clk
0:00:11.8]} 50. Ka2 {[%clk 0:00:17.7]} 50... Re4 {[%clk 0:00:12.1]} 51. b4
{[%clk 0:00:18.6]} 51... Nc4 {[%clk 0:00:12.6]} 52. Kb3 {[%clk 0:00:19.6]} 52...
Ne5 {[%clk 0:00:13.9]} 53. Ka4 {[%clk 0:00:21.5]} 53... Rxh4 {[%clk 0:00:14.2]}
54. Rc5 {[%clk 0:00:23.4]} 54... Nc6 {[%clk 0:00:14.9]} 55. Rg5 {[%clk
0:00:24.6]} 55... Rh3 {[%clk 0:00:15.4]} 56. Rg6 {[%clk 0:00:24.7]} 56... a6
{[%clk 0:00:15.5]} 57. Rh6 {[%clk 0:00:25.1]} 57... h4 {[%clk 0:00:15.5]} 58.
Rh5 {[%clk 0:00:26.1]} 58... Rc3 {[%clk 0:00:15.8]} 59. b5 {[%clk 0:00:26.5]}
59... axb5+ {[%clk 0:00:16.2]} 60. Rxb5+ {[%clk 0:00:26.3]} 60... Ka6 {[%clk
0:00:15.4]} 61. Rh5 {[%clk 0:00:28.2]} 61... b5+ {[%clk 0:00:15.9]} 62. Rxb5
{[%clk 0:00:28]} 62... Rc4+ {[%clk 0:00:17.8]} 63. Rb4 {[%clk 0:00:28.1]} 63...
Nxb4 {[%clk 0:00:18.8]} 64. axb4 {[%clk 0:00:28.9]} 64... Rg4 {[%clk 0:00:19.9]}
65. Kb3 {[%clk 0:00:30.8]} 65... h3 {[%clk 0:00:21.8]} 0-1

[Event "*** Titled Tuesday Blitz"]
[Site "Chess.com"]
[Date "2019.06.04"]
[Round "4"]
[White "BlackBoarder"]
[Black "m3alam"]
[Result "1/2-1/2"]
[WhiteElo "2532"]
[BlackElo "2356"]
[TimeControl "180+2"]
[EndTime "13:53:35 PDT"]
[Termination "Game drawn by stalemate"]

1. e4 {[%clk 0:03:01.5]} 1... c6 {[%clk 0:03:01.9]} 2. Nf3 {[%clk 0:03:02.2]}
2... d5 {[%clk 0:02:59.7]} 3. Nc3 {[%clk 0:03:03.3]} 3... dxe4 {[%clk
0:02:50.3]} 4. Nxe4 {[%clk 0:03:02.8]} 4... Nf6 {[%clk 0:02:45.9]} 5. Nxf6+
{[%clk 0:03:03.3]} 5... exf6 {[%clk 0:02:37.8]} 6. Bc4 {[%clk 0:03:04.1]} 6...
b5 {[%clk 0:02:34.2]} 7. Bb3 {[%clk 0:03:02.1]} 7... Qe7+ {[%clk 0:02:31.8]} 8.
Qe2 {[%clk 0:03:00.1]} 8... Qxe2+ {[%clk 0:02:33.1]} 9. Kxe2 {[%clk 0:03:02]}
9... Bd6 {[%clk 0:02:28.9]} 10. Re1 {[%clk 0:02:53.9]} 10... O-O {[%clk
0:02:26.1]} 11. d4 {[%clk 0:02:54]} 11... Re8+ {[%clk 0:02:23.2]} 12. Be3 {[%clk
0:02:53.3]} 12... Nd7 {[%clk 0:02:20.3]} 13. Kd2 {[%clk 0:02:44.6]} 13... Nb6
{[%clk 0:02:16.8]} 14. c3 {[%clk 0:02:43.2]} 14... a5 {[%clk 0:02:14.3]} 15. a3
{[%clk 0:02:31.5]} 15... a4 {[%clk 0:02:04.6]} 16. Ba2 {[%clk 0:02:32.3]} 16...
Rb8 {[%clk 0:02:02.3]} 17. Re2 {[%clk 0:02:28.7]} 17... Bg4 {[%clk 0:01:52.1]}
18. h3 {[%clk 0:02:26.6]} 18... Bh5 {[%clk 0:01:53]} 19. Rae1 {[%clk 0:02:25.4]}
19... Bg6 {[%clk 0:01:46.9]} 20. Kc1 {[%clk 0:02:06.7]} 20... Bd3 {[%clk
0:01:42.3]} 21. Rd2 {[%clk 0:02:07.2]} 21... Bc4 {[%clk 0:01:35.4]} 22. Bb1
{[%clk 0:02:08]} 22... Nd5 {[%clk 0:01:33.2]} 23. Bc2 {[%clk 0:01:59.2]} 23...
Nxe3 {[%clk 0:01:30.5]} 24. fxe3 {[%clk 0:01:50.3]} 24... Bg3 {[%clk 0:01:30.5]}
25. Red1 {[%clk 0:01:50.5]} 25... Rxe3 {[%clk 0:01:30]} 26. Bd3 {[%clk
0:01:47.3]} 26... Bd5 {[%clk 0:01:20.7]} 27. Re2 {[%clk 0:01:39]} 27... Rxe2
{[%clk 0:01:20.8]} 28. Bxe2 {[%clk 0:01:40.9]} 28... Re8 {[%clk 0:01:21.7]} 29.
Bd3 {[%clk 0:01:36.2]} 29... Re3 {[%clk 0:01:22.8]} 30. Kc2 {[%clk 0:01:34.7]}
30... Bb3+ {[%clk 0:01:18.8]} 31. Kd2 {[%clk 0:01:34.4]} 31... Rxd3+ {[%clk
0:01:12.1]} 32. Kxd3 {[%clk 0:01:35.3]} 32... Bxd1 {[%clk 0:01:13.4]} 33. Nd2
{[%clk 0:01:35.1]} 33... f5 {[%clk 0:01:10.5]} 34. c4 {[%clk 0:01:13.4]} 34...
Bf4 {[%clk 0:01:01.4]} 35. Nb1 {[%clk 0:00:58]} 35... Bc1 {[%clk 0:00:50.1]} 36.
Nc3 {[%clk 0:00:41.6]} 36... Bb3 {[%clk 0:00:46.8]} 37. cxb5 {[%clk 0:00:41.6]}
37... cxb5 {[%clk 0:00:46.3]} 38. Nxb5 {[%clk 0:00:37.9]} 38... Bxb2 {[%clk
0:00:47.1]} 39. g3 {[%clk 0:00:16.2]} 39... Kf8 {[%clk 0:00:47.8]} 40. Nd6
{[%clk 0:00:15.5]} 40... g6 {[%clk 0:00:47.1]} 41. Nc4 {[%clk 0:00:16.5]} 41...
Bxc4+ {[%clk 0:00:45.5]} 42. Kxc4 {[%clk 0:00:18.4]} 42... Bxa3 {[%clk
0:00:46.8]} 43. Kb5 {[%clk 0:00:19.7]} 43... Bd6 {[%clk 0:00:47.5]} 44. Kxa4
{[%clk 0:00:18.4]} 44... Bxg3 {[%clk 0:00:48.7]} 45. Kb5 {[%clk 0:00:19.7]}
45... f4 {[%clk 0:00:50]} 46. Kc4 {[%clk 0:00:21.2]} 46... f3 {[%clk 0:00:51.1]}
47. Kd3 {[%clk 0:00:22.5]} 47... Ke7 {[%clk 0:00:45.9]} 48. Ke3 {[%clk
0:00:23.2]} 48... f2 {[%clk 0:00:47.1]} 49. Ke2 {[%clk 0:00:24.9]} 49... Kd6
{[%clk 0:00:47.5]} 50. Kf1 {[%clk 0:00:21.4]} 50... Kd5 {[%clk 0:00:49.4]} 51.
Kg2 {[%clk 0:00:22.1]} 51... Kxd4 {[%clk 0:00:50.5]} 52. h4 {[%clk 0:00:20.3]}
52... Ke3 {[%clk 0:00:51.2]} 53. h5 {[%clk 0:00:10.3]} 53... Ke2 {[%clk
0:00:42.4]} 54. hxg6 {[%clk 0:00:07.4]} 54... hxg6 {[%clk 0:00:42.1]} 55. Kxg3
{[%clk 0:00:08.2]} 55... f1=Q {[%clk 0:00:42.8]} 56. Kg4 {[%clk 0:00:07.6]}
56... Qf5+ {[%clk 0:00:42.6]} 57. Kg3 {[%clk 0:00:08.4]} 57... Qf3+ {[%clk
0:00:42.8]} 58. Kh4 {[%clk 0:00:09.3]} 58... Kf2 {[%clk 0:00:29.9]} 59. Kg5
{[%clk 0:00:08.4]} 59... Qf5+ {[%clk 0:00:30.5]} 60. Kh6 {[%clk 0:00:07.5]}
60... g5 {[%clk 0:00:29.5]} 61. Kh5 {[%clk 0:00:05.4]} 61... g4+ {[%clk
0:00:30.8]} 62. Kh4 {[%clk 0:00:06.2]} 62... g3 {[%clk 0:00:32.7]} 1/2-1/2

[Event "*** Titled Tuesday Blitz"]
[Site "Chess.com"]
[Date "2019.06.04"]
[Round "4"]
[White "vladimirdamjanovic"]
[Black "witcher8"]
[Result "0-1"]
[WhiteElo "2486"]
[BlackElo "2362"]
[TimeControl "180+2"]
[EndTime "13:53:36 PDT"]
[Termination "witcher8 won by checkmate"]

1. e4 {[%clk 0:03:01.9]} 1... c6 {[%clk 0:02:59.9]} 2. d4 {[%clk 0:03:02.4]}
2... d5 {[%clk 0:03:01.4]} 3. e5 {[%clk 0:03:03.9]} 3... Bf5 {[%clk 0:03:01.8]}
4. c4 {[%clk 0:03:05.4]} 4... dxc4 {[%clk 0:02:53.9]} 5. Bxc4 {[%clk 0:03:05.5]}
5... e6 {[%clk 0:02:54.5]} 6. Nc3 {[%clk 0:03:07]} 6... Nd7 {[%clk 0:02:52.6]}
7. Nge2 {[%clk 0:03:08.3]} 7... Nb6 {[%clk 0:02:53.6]} 8. Bb3 {[%clk 0:03:09.4]}
8... Ne7 {[%clk 0:02:46.9]} 9. O-O {[%clk 0:03:10]} 9... Ned5 {[%clk 0:02:47.2]}
10. Ng3 {[%clk 0:03:05.3]} 10... Bg6 {[%clk 0:02:47.9]} 11. f4 {[%clk
0:03:05.7]} 11... Qd7 {[%clk 0:02:35.8]} 12. Qf3 {[%clk 0:03:01.8]} 12... O-O-O
{[%clk 0:02:33.9]} 13. a4 {[%clk 0:02:41.2]} 13... Ne7 {[%clk 0:02:33.1]} 14.
Be3 {[%clk 0:02:41.1]} 14... Nf5 {[%clk 0:02:31.3]} 15. Nxf5 {[%clk 0:02:40.5]}
15... Bxf5 {[%clk 0:02:32.1]} 16. Rfc1 {[%clk 0:02:20.8]} 16... Kb8 {[%clk
0:02:25.9]} 17. a5 {[%clk 0:02:12.7]} 17... Nd5 {[%clk 0:02:26.7]} 18. Bf2
{[%clk 0:02:07.8]} 18... Nb4 {[%clk 0:01:53]} 19. Ne4 {[%clk 0:01:36.6]} 19...
h5 {[%clk 0:01:46.9]} 20. h3 {[%clk 0:01:36.9]} 20... h4 {[%clk 0:01:41.7]} 21.
Rc4 {[%clk 0:01:17.3]} 21... Be7 {[%clk 0:01:39.3]} 22. Rac1 {[%clk 0:01:10]}
22... Bxe4 {[%clk 0:01:17.8]} 23. Qxe4 {[%clk 0:01:10.7]} 23... Qd5 {[%clk
0:01:19.4]} 24. Qe2 {[%clk 0:00:49.7]} 24... Qxa5 {[%clk 0:01:19.2]} 25. Be1
{[%clk 0:00:41.6]} 25... Qb6 {[%clk 0:01:16.6]} 26. Bf2 {[%clk 0:00:37.1]} 26...
Nd5 {[%clk 0:01:10.8]} 27. Qf3 {[%clk 0:00:34.7]} 27... g5 {[%clk 0:00:49]} 28.
fxg5 {[%clk 0:00:27.1]} 28... Bxg5 {[%clk 0:00:50.9]} 29. Rd1 {[%clk 0:00:24.6]}
29... Be3 {[%clk 0:00:36.3]} 30. Bxe3 {[%clk 0:00:15.6]} 30... Qxb3 {[%clk
0:00:37.4]} 31. Rc3 {[%clk 0:00:11.7]} 31... Nxc3 {[%clk 0:00:35.2]} 32. bxc3
{[%clk 0:00:13.6]} 32... Qxc3 {[%clk 0:00:33.7]} 33. Qf2 {[%clk 0:00:12.6]}
33... Rd5 {[%clk 0:00:31.2]} 34. Rc1 {[%clk 0:00:10.2]} 34... Qd3 {[%clk
0:00:28.8]} 35. Re1 {[%clk 0:00:09.6]} 35... Rg8 {[%clk 0:00:27.5]} 36. Qxf7
{[%clk 0:00:09.5]} 36... Qg6 {[%clk 0:00:22.8]} 37. Qf3 {[%clk 0:00:09.9]} 37...
Qg3 {[%clk 0:00:20.6]} 38. Rf1 {[%clk 0:00:08.7]} 38... Qxf3 {[%clk 0:00:20.5]}
39. Rxf3 {[%clk 0:00:10.6]} 39... a5 {[%clk 0:00:17.5]} 40. Bf2 {[%clk
0:00:11.9]} 40... a4 {[%clk 0:00:15.7]} 41. Rd3 {[%clk 0:00:08.8]} 41... b5
{[%clk 0:00:12.2]} 42. Bxh4 {[%clk 0:00:09.4]} 42... c5 {[%clk 0:00:09]} 43. Bf2
{[%clk 0:00:10.3]} 43... cxd4 {[%clk 0:00:09.4]} 44. g4 {[%clk 0:00:11.6]} 44...
Rc8 {[%clk 0:00:08.1]} 45. g5 {[%clk 0:00:12.1]} 45... Rc3 {[%clk 0:00:07.3]}
46. Rxd4 {[%clk 0:00:09.3]} 46... Rxd4 {[%clk 0:00:07.8]} 47. Bxd4 {[%clk
0:00:11.2]} 47... Rg3+ {[%clk 0:00:09.2]} 48. Kf2 {[%clk 0:00:12.5]} 48... Rxg5
{[%clk 0:00:10.5]} 49. h4 {[%clk 0:00:12.9]} 49... Rg4 {[%clk 0:00:10.8]} 50.
Bc5 {[%clk 0:00:12]} 50... Rxh4 {[%clk 0:00:11.1]} 51. Ke3 {[%clk 0:00:13.5]}
51... b4 {[%clk 0:00:10]} 52. Kd3 {[%clk 0:00:14]} 52... a3 {[%clk 0:00:07.9]}
53. Kc2 {[%clk 0:00:14.6]} 53... a2 {[%clk 0:00:07.6]} 54. Kb2 {[%clk
0:00:15.8]} 54... Rh2+ {[%clk 0:00:06.4]} 55. Ka1 {[%clk 0:00:16.7]} 55... b3
{[%clk 0:00:07.6]} 56. Bd4 {[%clk 0:00:16.7]} 56... Kb7 {[%clk 0:00:08.5]} 57.
Bc3 {[%clk 0:00:16.3]} 57... Rh1+ {[%clk 0:00:08.3]} 58. Kb2 {[%clk 0:00:16.9]}
58... a1=Q+ {[%clk 0:00:09.1]} 59. Kxb3 {[%clk 0:00:18.8]} 59... Rh3 {[%clk
0:00:08.3]} 60. Kc4 {[%clk 0:00:20.1]} 60... Qxc3+ {[%clk 0:00:09.3]} 61. Kb5
{[%clk 0:00:22]} 61... Qc6+ {[%clk 0:00:08.8]} 62. Kb4 {[%clk 0:00:23.3]} 62...
Rh4+ {[%clk 0:00:09.8]} 63. Kb3 {[%clk 0:00:24.3]} 63... Rc4 {[%clk 0:00:10.4]}
64. Kb2 {[%clk 0:00:25.3]} 64... Qb5+ {[%clk 0:00:11.2]} 65. Ka3 {[%clk
0:00:26]} 65... Ra4# {[%clk 0:00:13.1]} 0-1